fUST/lending_fUST_20260111
["ID","MTS","AMOUNT","RATE_DAILY","PERIOD"]
[401284749,1768103581086,-782.05645488,9.208e-05,2]
[401284750,1768103581117,-782.05645488,9.208e-05,2]
[401284751,1768103581147,-782.05645488,9.208e-05,2]
[401284752,1768103581303,-782.05645488,9.208e-05,2]
[401284753,1768103581332,-782.05645488,9.208e-05,2]
[401284754,1768103581361,-782.05645488,9.208e-05,2]
[401284755,1768103581391,-782.05645488,9.208e-05,2]
[401284756,1768103581420,-782.05645488,9.208e-05,2]
[401284757,1768103581453,-782.05645488,9.208e-05,2]
[401284758,1768103581555,-782.05645488,9.208e-05,2]
[401284759,1768103581587,-782.05645488,9.208e-05,2]
[401284760,1768103581617,-782.05645488,9.208e-05,2]
[401284761,1768103581646,-782.05645488,9.208e-05,2]
[401284762,1768103581675,-782.05645488,9.208e-05,2]
[401284763,1768103581704,-782.05645488,9.208e-05,2]
[401284764,1768103581731,-115.33254144,9.208e-05,2]
[401284765,1768103581851,-384.66745856,9.208e-05,2]
[401284766,1768103581882,-500.0,9.208e-05,2]
[401284767,1768103581911,-676.37315017,9.208e-05,2]
[401284768,1768103581939,-500.0,9.208e-05,2]
[401284769,1768103581966,-487.00892918,9.208e-05,2]
[401284770,1768103581996,-500.0,9.208e-05,2]
[401284771,1768103582025,-500.0,9.208e-05,2]
[401284772,1768103582054,-500.0,9.208e-05,2]
[401284773,1768103582083,-316.83731836,9.208e-05,2]
[401284774,1768103582111,-207.09207631,9.209e-05,2]
[401284775,1768103582720,-148.88210897,9.21e-05,2]
[401284776,1768103582734,-500.0,9.21e-05,2]
[401284777,1768103582747,-500.0,9.21e-05,2]
[401284778,1768103582761,-316.83731836,9.21e-05,2]
[401284779,1768103582774,-207.09207631,9.21e-05,2]
[401284780,1768103582787,-856.05213484,9.21e-05,2]
[401284781,1768103582818,-178.74164817,9.21e-05,2]
[401284782,1768103603483,-204.6718036,8.431e-05,2]
[401284783,1768103603517,-300.0,9.207e-05,2]
[401284784,1768103603578,-8990.6663928,9.21e-05,2]
[401284785,1768103603970,-10000.01,9.21e-05,2]
[401284786,1768103604168,-10000.01,9.21e-05,2]
[401284787,1768103604355,-10000.01,9.21e-05,2]
[401284788,1768103604541,-10000.01,9.21e-05,2]
[401284789,1768103604792,-10000.01,9.21e-05,2]
[401284790,1768103619424,-10000.01,9.21e-05,2]
[401284791,1768103619634,-10000.01,9.21e-05,2]
[401284792,1768103636336,257.92,6.36e-05,2]
[401284793,1768103636823,515.85,6.938e-05,2]
[401284794,1768103637133,773.77,7.516e-05,2]
[401284795,1768103641904,-240.27105052,8.094e-05,2]
[401284796,1768103653559,-311.5942483,8.094e-05,2]
[401284797,1768103656170,-479.82470118,8.094e-05,2]
[401284798,1768103656196,-284.8004238,8.673e-05,2]
[401284799,1768103658402,-234.51894738,8.673e-05,2]
[401284800,1768103661107,-770.30062882,8.673e-05,2]
[401284801,1768103661136,-300.0,9.207e-05,2]
[401284802,1768103661165,-300.0,9.207e-05,2]
[401284803,1768103661227,-7259.40874236,9.208e-05,2]
[401284804,1768103661319,-4916.15238396,9.208e-05,2]
[401284805,1768103661343,-167.70523208,9.208e-05,2]
[401284806,1768103661435,-500.0,9.208e-05,2]
[401284807,1768103661469,-9000.01,9.21e-05,2]
[401284808,1768103661544,-10000.01,9.21e-05,2]
[401284809,1768103661668,-10000.01,9.21e-05,2]
[401284810,1768103671322,427.98,0.00030137,120]
[401284811,1768103682583,-10000.01,9.21e-05,2]
[401284812,1768103682708,-10000.01,9.21e-05,2]
[401284813,1768103717174,282.38,5.891e-05,2]
[401284814,1768103717589,564.75,6.426e-05,2]
[401284815,1768103718008,847.13,6.962e-05,2]
[401284816,1768103718207,-300.0,9.209e-05,2]
[401284817,1768103718236,-300.0,9.209e-05,2]
[401284818,1768103718265,-300.0,9.209e-05,2]
[401284819,1768103718295,-1200.0,9.209e-05,2]
[401284820,1768103718374,-5800.01,9.21e-05,2]
[401284821,1768103718431,1129.5,7.497e-05,2]
[401284822,1768103718459,-10000.01,9.21e-05,2]
[401284823,1768103718873,-1411.88,8.033e-05,2]
[401284824,1768103718911,-7176.25,9.21e-05,2]
[401284825,1768103724582,-1694.25,8.568e-05,2]
[401284826,1768103724614,-1976.63,9.104e-05,2]
[401284827,1768103724679,-2658.25,9.21e-05,2]
[401284828,1768103724929,-10000.01,9.21e-05,2]
[401284829,1768103725065,-10000.01,9.21e-05,2]
[401284830,1768103726265,-228.08421647,9.21e-05,2]
[401284831,1768103731692,-10000.01,9.21e-05,2]
[401284832,1768103731857,-10000.01,9.21e-05,2]
[401284833,1768103737887,-10000.01,9.21e-05,2]
[401284834,1768103749136,-500.0,9.208e-05,2]
[401284835,1768103749164,-500.0,9.208e-05,2]
[401284836,1768103749194,-500.0,9.208e-05,2]
[401284837,1768103749224,-500.0,9.208e-05,2]
[401284838,1768103749252,-500.0,9.208e-05,2]
[401284839,1768103749282,-289.16977611,9.208e-05,2]
[401284840,1768103749388,-4421.67044778,9.21e-05,2]
[401284841,1768103749458,-10000.01,9.21e-05,2]
[401284842,1768103759027,-218.06752064,9.208e-05,2]
[401284843,1768103759056,-669.74119831,9.208e-05,2]
[401284844,1768103759084,-669.74119831,9.208e-05,2]
[401284845,1768103759113,-669.74119831,9.208e-05,2]
[401284846,1768103759143,-669.74119831,9.208e-05,2]
[401284847,1768103759174,-669.74119831,9.208e-05,2]
[401284848,1768103759203,-669.74119831,9.208e-05,2]
[401284849,1768103759231,-669.74119831,9.208e-05,2]
[401284850,1768103759652,-187.49818238,9.208e-05,2]
[401284851,1768103759716,-482.24301593,9.208e-05,2]
[401284852,1768103759753,-669.74119831,9.208e-05,2]
[401284853,1768103759786,-669.74119831,9.208e-05,2]
[401284854,1768103759824,-500.0,9.208e-05,2]
[401284855,1768103759860,-669.74119831,9.208e-05,2]
[401284856,1768103759896,-500.0,9.208e-05,2]
[401284857,1768103759931,-669.74119831,9.208e-05,2]
[401284858,1768103759965,-500.0,9.208e-05,2]
[401284859,1768103759999,-7.85318335,9.208e-05,2]
[401284860,1768103760535,-661.88801496,9.208e-05,2]
[401284861,1768103770199,-300.0,9.207e-05,2]
[401284862,1768103770228,-500.0,9.208e-05,2]
[401284863,1768103770257,-669.74119831,9.208e-05,2]
[401284864,1768103770292,-500.0,9.208e-05,2]
[401284865,1768103770321,-669.74119831,9.208e-05,2]
[401284866,1768103770355,-500.0,9.208e-05,2]
[401284867,1768103770386,-669.74119831,9.208e-05,2]
[401284868,1768103770417,-500.0,9.208e-05,2]
[401284869,1768103770446,-669.74119831,9.208e-05,2]
[401284870,1768103770726,-42.08041352,9.208e-05,2]
[401284871,1768103772567,-457.91958648,9.208e-05,2]
[401284872,1768103772595,-669.74119831,9.208e-05,2]
[401284873,1768103772628,-669.74119831,9.208e-05,2]
[401284874,1768103772658,-500.0,9.208e-05,2]
[401284875,1768103772688,-669.74119831,9.208e-05,2]
[401284876,1768103772719,-500.0,9.208e-05,2]
[401284877,1768103772749,-669.74119831,9.208e-05,2]
[401284878,1768103772780,-500.0,9.208e-05,2]
[401284879,1768103772809,-56.50004225,9.208e-05,2]
[401284880,1768103772938,-613.24115606,9.208e-05,2]
[401284881,1768103781278,-500.0,9.208e-05,2]
[401284882,1768103781309,-500.0,9.208e-05,2]
[401284883,1768103781342,-669.74119831,9.208e-05,2]
[401284884,1768103781372,-500.0,9.208e-05,2]
[401284885,1768103781402,-669.74119831,9.208e-05,2]
[401284886,1768103781431,-669.74119831,9.208e-05,2]
[401284887,1768103781461,-279.92098651,9.208e-05,2]
[401284888,1768103781489,-669.74119831,9.208e-05,2]
[401284889,1768103781518,-500.0,9.208e-05,2]
[401284890,1768103781665,-82.2384405,9.208e-05,2]
[401284891,1768103788011,-587.50275781,9.208e-05,2]
[401284892,1768103788043,-500.0,9.208e-05,2]
[401284893,1768103788073,-669.74119831,9.208e-05,2]
[401284894,1768103788105,-500.0,9.208e-05,2]
[401284895,1768103788135,-669.74119831,9.208e-05,2]
[401284896,1768103788163,-500.0,9.208e-05,2]
[401284897,1768103788193,-669.74119831,9.208e-05,2]
[401284898,1768103788223,-500.0,9.208e-05,2]
[401284899,1768103788253,-136.81609621,9.208e-05,2]
[401284900,1768103788499,-532.9251021,9.208e-05,2]
[401284901,1768103796700,482.53,6.384e-05,2]
[401284902,1768103797103,965.06,6.964e-05,2]
[401284903,1768103797537,1447.58,7.544e-05,2]
[401284904,1768103798639,-1930.11,8.125e-05,2]
[401284905,1768103798670,-1593.6774751,9.208e-05,2]
[401284906,1768103798706,-2952.4350498,9.208e-05,2]
[401284907,1768103798969,-2412.64,8.705e-05,2]
[401284908,1768103799000,-500.0,9.208e-05,2]
[401284909,1768103799032,-669.74119831,9.208e-05,2]
[401284910,1768103799061,-500.0,9.208e-05,2]
[401284911,1768103799091,-669.74119831,9.208e-05,2]
[401284912,1768103799212,-495.76520676,9.208e-05,2]
[401284913,1768103808440,-4.23479324,9.208e-05,2]
[401284914,1768103808472,-669.74119831,9.208e-05,2]
[401284915,1768103808500,-669.74119831,9.208e-05,2]
[401284916,1768103808531,-500.0,9.208e-05,2]
[401284917,1768103808685,-669.74119831,9.208e-05,2]
[401284918,1768103808715,-500.0,9.208e-05,2]
[401284919,1768103808745,-669.74119831,9.208e-05,2]
[401284920,1768103808773,-669.74119831,9.208e-05,2]
[401284921,1768103808804,-500.0,9.208e-05,2]
[401284922,1768103808935,-294.12843042,9.208e-05,2]
[401284923,1768103819011,-205.87156958,9.208e-05,2]
[401284924,1768103819041,-669.74119831,9.208e-05,2]
[401284925,1768103819071,-500.0,9.208e-05,2]
[401284926,1768103819102,-669.74119831,9.208e-05,2]
[401284927,1768103819133,-500.0,9.208e-05,2]
[401284928,1768103819163,-500.0,9.208e-05,2]
[401284929,1768103819192,-500.0,9.208e-05,2]
[401284930,1768103819220,-500.0,9.208e-05,2]
[401284931,1768103819248,-500.0,9.208e-05,2]
[401284932,1768103819275,-409.3020676,9.208e-05,2]
[401284933,1768103819420,-90.6979324,9.208e-05,2]
[401284934,1768103832869,-300.0,9.207e-05,2]
[401284935,1768103832899,-300.0,9.207e-05,2]
[401284936,1768103832931,-500.0,9.208e-05,2]
[401284937,1768103832961,-500.0,9.208e-05,2]
[401284938,1768103832993,-500.0,9.208e-05,2]
[401284939,1768103833028,-500.0,9.208e-05,2]
[401284940,1768103833057,-500.0,9.208e-05,2]
[401284941,1768103833087,-500.0,9.208e-05,2]
[401284942,1768103833117,-642.97818871,9.208e-05,2]
[401284943,1768103833148,-500.0,9.208e-05,2]
[401284944,1768103833180,-14.05362258,9.208e-05,2]
[401284945,1768103833255,-485.94637742,9.208e-05,2]
[401284946,1768103833284,-500.0,9.208e-05,2]
[401284947,1768103833314,-500.0,9.208e-05,2]
[401284948,1768103833347,-500.0,9.208e-05,2]
[401284949,1768103833379,-500.0,9.208e-05,2]
[401284950,1768103833412,-500.0,9.208e-05,2]
[401284951,1768103833443,-500.0,9.208e-05,2]
[401284952,1768103833706,-500.0,9.208e-05,2]
[401284953,1768103833720,-3028.11724516,9.208e-05,2]
[401284954,1768103839857,-10000.01,9.208e-05,2]
[401284955,1768103846938,-10000.01,9.208e-05,2]
[401284956,1768103868100,-1691.97776416,9.208e-05,2]
[401284957,1768103868128,-1691.97776416,9.208e-05,2]
[401284958,1768103868156,-1540.1211792,9.208e-05,2]
[401284959,1768103868210,-151.85658496,9.208e-05,2]
[401284960,1768103875998,458.63,6.351e-05,2]
[401284961,1768103876388,917.26,6.929e-05,2]
[401284962,1768103876791,1375.88,7.506e-05,2]
[401284963,1768103878056,-1834.51,8.083e-05,2]
[401284964,1768103878084,-2293.14,8.661e-05,2]
[401284965,1768103878128,-1744.71,9.208e-05,2]
[401284966,1768103886830,-10000.01,9.179e-05,2]
[401284967,1768103897703,-10000.01,9.179e-05,2]
[401284968,1768103898091,-10000.01,9.179e-05,2]
[401284969,1768103898309,-10000.01,9.179e-05,2]
[401284970,1768103898530,-10000.01,9.179e-05,2]
[401284971,1768103898732,-10000.01,9.179e-05,2]
[401284972,1768103898903,-10000.01,9.179e-05,2]
[401284973,1768103899101,-4456.1207673,9.179e-05,2]
[401284974,1768103899124,-1087.7684654,9.179e-05,2]
[401284975,1768103899314,-300.0,9.207e-05,2]
[401284976,1768103899346,-9400.01,9.208e-05,2]
[401284977,1768103908876,-500.0,9.207e-05,2]
[401284978,1768103908906,-500.0,9.207e-05,2]
[401284979,1768103908935,-500.0,9.207e-05,2]
[401284980,1768103908964,-500.0,9.207e-05,2]
[401284981,1768103908995,-500.0,9.207e-05,2]
[401284982,1768103909026,-500.0,9.207e-05,2]
[401284983,1768103909057,-500.0,9.207e-05,2]
[401284984,1768103909086,-500.0,9.207e-05,2]
[401284985,1768103909115,-500.0,9.207e-05,2]
[401284986,1768103909144,-500.0,9.207e-05,2]
[401284987,1768103909237,-500.0,9.207e-05,2]
[401284988,1768103909266,-538.1406674,9.207e-05,2]
[401284989,1768103909295,-500.0,9.207e-05,2]
[401284990,1768103909325,-500.0,9.207e-05,2]
[401284991,1768103909354,-500.0,9.207e-05,2]
[401284992,1768103909389,-500.0,9.207e-05,2]
[401284993,1768103909421,-500.0,9.207e-05,2]
[401284994,1768103909450,-500.0,9.207e-05,2]
[401284995,1768103909479,-306.3516612,9.207e-05,2]
[401284996,1768103909508,-500.0,9.207e-05,2]
[401284997,1768103909786,-38.1506674,9.208e-05,2]
[401284998,1768103909800,-311.0253428,9.208e-05,2]
[401284999,1768103917169,-500.0,9.207e-05,2]
[401285000,1768103917198,-500.0,9.207e-05,2]
[401285001,1768103917226,-500.0,9.207e-05,2]
[401285002,1768103917286,-7000.01,9.208e-05,2]
[401285003,1768103934405,-500.0,9.207e-05,2]
[401285004,1768103934441,-500.0,9.207e-05,2]
[401285005,1768103934473,-22.05325536,9.208e-05,2]
[401285006,1768103934527,-7955.90348928,9.208e-05,2]
[401285007,1768103954686,464.63,5.892e-05,2]
[401285008,1768103955110,929.26,6.428e-05,2]
[401285009,1768103955520,1393.9,6.963e-05,2]
[401285010,1768103955925,1858.53,7.499e-05,2]
[401285011,1768103956324,2323.16,8.034e-05,2]
[401285012,1768103956726,2787.79,8.57e-05,2]
[401285013,1768103958080,-192.78,9.106e-05,2]
[401285014,1768103960088,-177.15831312,9.106e-05,2]
[401285015,1768103963770,-436.42084344,9.106e-05,2]
[401285016,1768103965331,-172.74084344,9.106e-05,2]
[401285017,1768103967325,-173.19,9.106e-05,2]
[401285018,1768104007258,10000.01,8.208e-05,2]
[401285019,1768104007286,10000.01,8.208e-05,2]
[401285020,1768104007310,10000.01,8.208e-05,2]
[401285021,1768104007336,6778.8596462,8.208e-05,2]
[401285022,1768104032801,431.62,5.908e-05,2]
[401285023,1768104033221,863.24,6.446e-05,2]
[401285024,1768104033619,1294.86,6.983e-05,2]
[401285025,1768104034053,631.4303538,7.52e-05,2]
[401285026,1768104034076,1095.0396462,7.52e-05,2]
[401285027,1768104034449,2158.09,8.057e-05,2]
[401285028,1768104034863,2589.71,8.594e-05,2]
[401285029,1768104112207,400.65,5.83e-05,2]
[401285030,1768104112593,801.31,6.36e-05,2]
[401285031,1768104116191,1201.96,6.89e-05,2]
[401285032,1768104116603,1602.62,7.42e-05,2]
[401285033,1768104117131,150.6303538,7.95e-05,2]
[401285034,1768104117154,1852.6396462,7.95e-05,2]
[401285035,1768104117405,2403.92,8.48e-05,2]
[401285036,1768104117813,2804.58,9.01e-05,2]
[401285037,1768104192457,353.26,8.642e-05,2]
[401285038,1768104221595,161.0,8.3e-07,2]
[401285039,1768104222641,161.0,8.3e-07,2]
[401285040,1768104223700,161.0,8.3e-07,2]
[401285041,1768104224937,161.0,8.3e-07,2]
[401285042,1768104225903,161.0,8.3e-07,2]
[401285043,1768104226973,161.0,8.3e-07,2]
[401285044,1768104227996,161.0,8.3e-07,2]
[401285045,1768104229851,161.0,8.3e-07,2]
[401285059,1768104237850,169.4450256,4.179e-05,2]
[401285061,1768104273706,348.76,5.844e-05,2]
[401285062,1768104274126,697.53,6.375e-05,2]
[401285063,1768104274585,1046.29,6.907e-05,2]
[401285064,1768104275217,1395.06,7.438e-05,2]
[401285065,1768104275499,1743.82,7.969e-05,2]
[401285066,1768104275907,2092.59,8.5e-05,2]
[401285067,1768104276311,2441.35,9.032e-05,2]
[401285068,1768104287439,-181.9,9.106e-05,2]
[401285069,1768104347020,-198.3434654,9.106e-05,2]
[401285070,1768104350274,234.61,6.527e-05,2]
[401285071,1768104350296,46.2,6.527e-05,2]
[401285072,1768104350683,561.62,7.12e-05,2]
[401285073,1768104350991,-167.7565346,9.106e-05,2]
[401285074,1768104351018,-132.2434654,9.107e-05,2]
[401285075,1768104351070,842.43,7.713e-05,2]
[401285076,1768104351459,1123.24,8.307e-05,2]
[401285077,1768104351859,1404.05,8.9e-05,2]
[401285078,1768104431287,272.55,6.521e-05,2]
[401285079,1768104431695,545.1,7.114e-05,2]
[401285080,1768104432102,817.65,7.707e-05,2]
[401285081,1768104432485,1090.2,8.3e-05,2]
[401285082,1768104432888,1362.74,8.893e-05,2]
[401285083,1768104483138,465.57,6.993e-05,2]
[401285084,1768104483390,465.57,6.993e-05,2]
[401285085,1768104510709,278.65,6.525e-05,2]
[401285086,1768104510998,557.31,7.118e-05,2]
[401285087,1768104511435,835.96,7.711e-05,2]
[401285088,1768104511820,1114.62,8.305e-05,2]
[401285089,1768104512240,1393.27,8.898e-05,2]
[401285090,1768104534922,157.0,8.3e-07,2]
[401285091,1768104568549,643.82,9e-05,2]
[401285092,1768104568570,10000.01,9e-05,2]
[401285093,1768104568595,10000.01,9e-05,2]
[401285094,1768104568617,10000.01,9e-05,2]
[401285095,1768104568639,7040.23763224,9e-05,2]
[401285096,1768104588154,543.81,6.527e-05,2]
[401285097,1768104588573,1087.62,7.12e-05,2]
[401285098,1768104588970,1328.34236776,7.714e-05,2]
[401285099,1768104588992,303.08763224,7.714e-05,2]
[401285100,1768104589380,2175.25,8.307e-05,2]
[401285101,1768104589811,2719.06,8.901e-05,2]
[401285102,1768104604689,711.76,5e-05,2]
[401285103,1768104605233,711.76,5.5e-05,2]
[401285104,1768104605786,711.76,6e-05,2]
[401285105,1768104606454,711.76,6.5e-05,2]
[401285106,1768104607022,711.76,7.1e-05,2]
[401285107,1768104607538,711.76,7.6e-05,2]
[401285108,1768104608094,532.05236776,8.1e-05,2]
[401285109,1768104608117,179.70763224,8.1e-05,2]
[401285110,1768104608567,711.76,8.6e-05,2]
[401285115,1768104631637,-711.76,9.1e-05,2]
[401285116,1768104631647,-218.88182987,9.103e-05,2]
[401285117,1768104631656,-300.0,9.106e-05,2]
[401285118,1768104631666,-300.0,9.106e-05,2]
[401285119,1768104631676,-300.0,9.106e-05,2]
[401285120,1768104631687,-1200.0,9.106e-05,2]
[401285121,1768104631696,-548.0,9.106e-05,2]
[401285122,1768104631708,-911.6372324,9.106e-05,2]
[401285123,1768104631718,-500.0,9.106e-05,2]
[401285124,1768104631727,-542.37851933,9.106e-05,2]
[401285125,1768104631736,-911.6372324,9.106e-05,2]
[401285126,1768104631746,-500.0,9.106e-05,2]
[401285127,1768104631766,-911.6372324,9.106e-05,2]
[401285128,1768104631779,-500.0,9.106e-05,2]
[401285129,1768104631789,-500.0,9.106e-05,2]
[401285130,1768104631799,-911.6372324,9.106e-05,2]
[401285131,1768104631809,-500.0,9.106e-05,2]
[401285132,1768104631818,-911.6372324,9.106e-05,2]
[401285133,1768104631827,-500.0,9.106e-05,2]
[401285134,1768104631837,-904.61439183,9.106e-05,2]
[401285135,1768104631930,-7.02284057,9.106e-05,2]
[401285136,1768104631954,-199.14291113,9.106e-05,2]
[401285137,1768104633309,711.64,5e-05,2]
[401285138,1768104634131,-300.85708887,9.106e-05,2]
[401285139,1768104634155,-39.70023401,9.106e-05,2]
[401285140,1768104636720,-251.6565346,9.106e-05,2]
[401285143,1768104638009,-620.28046379,9.106e-05,2]
[401285144,1768104638019,-911.6372324,9.106e-05,2]
[401285145,1768104638029,-500.0,9.106e-05,2]
[401285146,1768104638039,-911.6372324,9.106e-05,2]
[401285147,1768104638049,-911.6372324,9.106e-05,2]
[401285148,1768104638059,-500.0,9.106e-05,2]
[401285149,1768104638068,-911.6372324,9.106e-05,2]
[401285150,1768104638078,-911.6372324,9.106e-05,2]
[401285151,1768104638088,-500.0,9.106e-05,2]
[401285152,1768104638097,-911.6372324,9.106e-05,2]
[401285153,1768104638107,-911.6372324,9.106e-05,2]
[401285154,1768104638116,-911.6372324,9.106e-05,2]
[401285155,1768104638126,-500.0,9.106e-05,2]
[401285156,1768104638137,-431.39792785,9.106e-05,2]
[401285213,1768104644431,-3e-08,9.106e-05,2]
[401285244,1768104644811,-480.23930452,9.106e-05,2]
[401285245,1768104644821,-911.6372324,9.106e-05,2]
[401285246,1768104644830,-415.37138505,9.106e-05,2]
[401285247,1768104644839,-911.6372324,9.106e-05,2]
[401285248,1768104644848,-911.6372324,9.106e-05,2]
[401285249,1768104644859,-911.6372324,9.106e-05,2]
[401285250,1768104644868,-911.6372324,9.106e-05,2]
[401285251,1768104644877,-911.6372324,9.106e-05,2]
[401285252,1768104644886,-911.6372324,9.106e-05,2]
[401285253,1768104644895,-911.6372324,9.106e-05,2]
[401285254,1768104644904,-911.6372324,9.106e-05,2]
[401285255,1768104644914,-911.6372324,9.106e-05,2]
[401285256,1768104644923,-911.6372324,9.106e-05,2]
[401285257,1768104644933,-911.6372324,9.106e-05,2]
[401285258,1768104644942,-911.6372324,9.106e-05,2]
[401285259,1768104644951,-911.6372324,9.106e-05,2]
[401285260,1768104644960,-911.6372324,9.106e-05,2]
[401285261,1768104644970,-911.6372324,9.106e-05,2]
[401285262,1768104644979,-911.6372324,9.106e-05,2]
[401285263,1768104644988,-911.6372324,9.106e-05,2]
[401285264,1768104644997,-911.6372324,9.106e-05,2]
[401285265,1768104645006,-911.6372324,9.106e-05,2]
[401285266,1768104645015,-911.6372324,9.106e-05,2]
[401285267,1768104645025,-911.6372324,9.106e-05,2]
[401285268,1768104645034,-911.6372324,9.106e-05,2]
[401285269,1768104645043,-911.6372324,9.106e-05,2]
[401285270,1768104645052,-911.6372324,9.106e-05,2]
[401285272,1768104645062,-911.6372324,9.106e-05,2]
[401285273,1768104645073,-911.6372324,9.106e-05,2]
[401285275,1768104645082,-911.6372324,9.106e-05,2]
[401285277,1768104645092,-911.6372324,9.106e-05,2]
[401285279,1768104645102,-911.6372324,9.106e-05,2]
[401285281,1768104645112,-911.6372324,9.106e-05,2]
[401285283,1768104645121,-911.6372324,9.106e-05,2]
[401285285,1768104645131,-911.6372324,9.106e-05,2]
[401285287,1768104645140,-911.6372324,9.106e-05,2]
[401285289,1768104645150,-691.877125,9.106e-05,2]
[401285291,1768104645163,-219.7601074,9.106e-05,2]
[401285293,1768104645173,-911.6372324,9.106e-05,2]
[401285295,1768104645183,-911.6372324,9.106e-05,2]
[401285297,1768104645192,-911.6372324,9.106e-05,2]
[401285299,1768104645201,-911.6372324,9.106e-05,2]
[401285301,1768104645211,-911.6372324,9.106e-05,2]
[401285303,1768104645220,-911.6372324,9.106e-05,2]
[401285305,1768104645229,-911.6372324,9.106e-05,2]
[401285307,1768104645238,-911.6372324,9.106e-05,2]
[401285309,1768104645248,-911.6372324,9.106e-05,2]
[401285311,1768104645258,-911.6372324,9.106e-05,2]
[401285313,1768104645268,-388.8531404,9.106e-05,2]
[401285382,1768104645761,-522.784092,9.106e-05,2]
[401285384,1768104645771,-366.36137472,9.106e-05,2]
[401285457,1768104665940,606.34,5.836e-05,2]
[401285458,1768104666366,1212.67,6.367e-05,2]
[401285459,1768104666774,1819.01,6.897e-05,2]
[401285460,1768104667181,2425.35,7.428e-05,2]
[401285461,1768104667599,2333.53236776,7.959e-05,2]
[401285462,1768104667624,698.14763224,7.959e-05,2]
[401285463,1768104668115,3638.02,8.489e-05,2]
[401285464,1768104668518,4244.36,9.02e-05,2]
[401285465,1768104678682,243.28275221,8.931e-05,2]
[401285466,1768104679686,171.51692933,8.931e-05,2]
[401285467,1768104682711,200.4248976,8.931e-05,2]
[401285468,1768104684416,237.18653309,8.931e-05,2]
[401285469,1768104684454,153.14391162,8.931e-05,2]
[401285470,1768104685445,200.0,8.931e-05,2]
[401285471,1768104705852,297.255,8.925e-05,2]
[401285472,1768104705913,179.385,8.925e-05,2]
[401285473,1768104729933,9523.37,8.17e-05,2]
[401285474,1768104729955,7016.367552,8.17e-05,2]
[401285475,1768104747300,491.13,5.836e-05,2]
[401285476,1768104747726,982.25,6.367e-05,2]
[401285477,1768104748169,1473.38,6.897e-05,2]
[401285478,1768104748609,1964.5,7.428e-05,2]
[401285479,1768104749034,2455.63,7.958e-05,2]
[401285480,1768104749456,2633.12,8.489e-05,2]
[401285481,1768104749480,313.63,8.489e-05,2]
[401285482,1768104749880,3437.88,9.019e-05,2]
[401285483,1768104827190,350.79,5.829e-05,2]
[401285484,1768104827592,701.57,6.359e-05,2]
[401285485,1768104827982,1052.36,6.889e-05,2]
[401285486,1768104828454,1403.14,7.419e-05,2]
[401285487,1768104828864,1753.93,7.949e-05,2]
[401285488,1768104829804,986.71,8.479e-05,2]
[401285489,1768104829828,1118.0,8.479e-05,2]
[401285490,1768104830223,2455.5,9.008e-05,2]
[401285491,1768104905687,349.93,5.834e-05,2]
[401285492,1768104906097,699.85,6.364e-05,2]
[401285493,1768104906509,1049.78,6.895e-05,2]
[401285494,1768104906911,1399.71,7.425e-05,2]
[401285495,1768104907312,1749.63,7.955e-05,2]
[401285496,1768104907705,1177.61,8.486e-05,2]
[401285497,1768104907729,921.95,8.486e-05,2]
[401285498,1768104908111,2449.49,9.016e-05,2]
[401285499,1768104985237,236.61,5.837e-05,2]
[401285500,1768104985640,473.22,6.367e-05,2]
[401285501,1768104986039,709.83,6.898e-05,2]
[401285502,1768104986422,946.44,7.429e-05,2]
[401285503,1768104986824,1183.05,7.959e-05,2]
[401285504,1768104987230,1419.66,8.49e-05,2]
[401285505,1768104987784,1656.27,9.02e-05,2]
[401285506,1768105006923,-151.02419318,9.068e-05,2]
[401285507,1768105006945,-151.60033052,9.068e-05,2]
[401285508,1768105006969,-207.38050303,9.086e-05,2]
[401285509,1768105008435,-7.12369025,9.086e-05,2]
[401285510,1768105008459,-178.51215727,9.105e-05,2]
[401285511,1768105011965,-421.40025926,9.105e-05,2]
[401285512,1768105015209,-231.36964492,9.105e-05,2]
[401285513,1768105061567,3.49,5.869e-05,2]
[401285514,1768105061596,210.06,5.869e-05,2]
[401285515,1768105061962,427.09,6.402e-05,2]
[401285516,1768105062363,640.64,6.936e-05,2]